bitfinex-derivatives/quotes_SOLF0:USTF0_20220104
["timestamp","ask_amount","ask_price","bid_price","bid_amount"]
[1641308248061,34.01279,172.96,172.87,27.66479]
[1641308248262,34.01279,172.96,172.87,30.66479]
[1641308248461,34.01279,172.96,172.9,0.51862206]
[1641308248861,34.01279,172.96,172.91,0.65235617]
[1641308249063,3.26178085,172.95,172.91,0.65235617]
[1641308249262,3.26178085,172.95,172.92,0.51862206]
[1641308249461,3.26178085,172.95,172.88,0.65235617]
[1641308249667,3.26178085,172.95,172.91,0.51862206]
[1641308249861,3.26178085,172.95,172.88,3.65235617]
[1641308250062,27.66479,172.96,172.88,3.65235617]
[1641308250262,27.66479,172.96,172.94,0.51862206]
[1641308250463,27.66479,172.96,172.88,0.65235617]
[1641308250865,27.66479,172.96,172.95,0.65235617]
[1641308251067,36.20479,172.96,172.92,0.51862206]
[1641308251267,41.51379,172.96,172.87,30.66479]
[1641308251466,41.51379,172.96,172.93,0.51862206]
[1641308251968,41.51379,172.96,172.94,0.51862206]
[1641308252165,41.51379,172.96,172.95,0.51862206]
[1641308252369,41.51379,172.96,172.94,0.65227519]
[1641308252768,41.51379,172.96,172.94,0.51862206]
[1641308252969,41.51379,172.96,172.95,0.51862206]
[1641308253169,8.54,172.96,172.95,1.17089725]
[1641308253869,3.2614956,172.96,172.95,1.17089725]
[1641308254070,8.52,173.01,172.95,1.17089725]
[1641308254270,8.52,173.01,173.0,0.51862206]
[1641308254970,36.18479,173.01,173.0,1.17089725]
[1641308255372,36.18479,173.01,173.0,0.65227519]
[1641308255870,36.18479,173.01,172.93,0.65227519]
[1641308257071,2.01338821,173.0,172.94,2.06262495]
[1641308257672,2.01338821,173.0,172.95,0.65227519]
[1641308258474,2.01338821,173.0,172.96,0.51862206]
[1641308258672,2.01338821,173.0,172.95,0.65227519]
[1641308258872,8.50838821,173.0,172.95,0.65227519]
[1641308259074,8.50838821,173.0,172.92,0.65227519]
[1641308260077,8.50838821,173.0,172.92,3.65227519]
[1641308260277,2.01338821,172.99,172.93,2.06256619]
[1641308260676,2.01338821,172.99,172.94,0.65227519]
[1641308261080,12.22878171,172.97,172.94,0.65227519]
[1641308262482,12.22878171,172.98,172.94,0.65227519]
[1641308262882,12.22878171,172.96,172.92,0.65227519]
[1641308263283,12.22878171,172.96,172.9,0.65227519]
[1641308263683,12.22878171,172.96,172.89,0.65227519]
[1641308264285,12.22878171,172.96,172.89,3.65227519]
[1641308264685,12.22878171,172.96,172.9,2.71479303]
[1641308264886,39.89357171,172.96,172.9,2.71479303]
[1641308265086,12.22878171,172.96,172.9,2.71479303]
[1641308265286,2.01338821,172.95,172.91,2.71479303]
[1641308265485,2.01338821,172.95,172.91,5.71479303]
[1641308265686,2.01338821,172.95,172.92,0.65227519]
[1641308266989,12.22878171,172.99,172.93,2.06251784]
[1641308267588,12.22878171,172.99,172.94,0.65227519]
[1641308268488,12.22878171,172.99,172.95,2.06251784]
[1641308268989,12.22878171,172.99,172.96,0.65227519]
[1641308270692,12.22878171,172.99,172.93,0.65227519]
[1641308270893,18.59878171,172.99,172.93,0.65227519]
[1641308271092,18.59878171,172.99,172.92,0.65227519]
[1641308272093,2.01338821,172.98,172.94,2.06265391]
[1641308272494,2.01338821,172.98,172.95,0.65227519]
[1641308272692,14.24216992,172.98,172.95,0.65227519]
[1641308273393,14.24216992,172.98,172.94,0.65227519]
[1641308274093,12.22878171,172.96,172.9,22.66479]
[1641308274896,12.22878171,172.91,172.9,22.66479]
[1641308275097,18.24378171,172.91,172.87,30.66479]
[1641308275297,18.24378171,172.91,172.88,3.0]
[1641308275496,18.24378171,172.91,172.87,30.66479]
[1641308275697,18.24378171,172.91,172.88,3.0]
[1641308276097,18.24378171,172.91,172.87,30.66479]
[1641308276298,2.01338821,172.9,172.89,2.06239063]
[1641308276498,2.01338821,172.9,172.89,1e-08]
[1641308276899,2.01338821,172.9,172.87,30.66479]
[1641308277100,14.24216992,172.9,172.87,30.66479]
[1641308277699,14.24216992,172.9,172.88,3.0]
[1641308277902,2.01338821,172.9,172.88,3.0]
[1641308278200,2.01338821,172.9,172.87,30.66479]
[1641308278401,6.73,172.9,172.87,30.66479]
[1641308279702,6.73,172.9,172.84,12.22878171]
[1641308280103,12.22878171,172.88,172.8,15.22878171]
[1641308280504,12.22878171,172.88,172.81,3.0]
[1641308281106,12.22878171,172.89,172.81,42.89357171]
[1641308281507,12.22878171,172.89,172.81,39.89357171]
[1641308283907,6.73,172.9,172.81,27.66479]
[1641308284107,98.57309,172.91,172.81,27.66479]
[1641308284509,101.57309,172.91,172.81,27.66479]
[1641308285111,27.66479,172.88,172.81,27.66479]
[1641308285313,32.56979,172.88,172.78,27.66479]
[1641308285614,3.0,172.87,172.77,3.0]
[1641308286211,35.56979,172.88,172.77,3.0]
[1641308286413,32.56979,172.88,172.75,3.0]
[1641308286812,6.26333806,172.87,172.75,3.0]
[1641308287015,3.26333806,172.87,172.74,30.66479]
[1641308287214,65.23903806,172.86,172.74,30.66479]
[1641308287613,61.9757,172.86,172.74,30.66479]
[1641308288415,64.9757,172.86,172.74,30.66479]
[1641308288816,3.26375142,172.85,172.74,30.66479]
[1641308289118,39.89357171,172.83,172.75,20.39739981]
[1641308289315,45.60357171,172.83,172.75,20.39739981]
[1641308290217,12.22878171,172.82,172.76,0.65274012]
[1641308290617,12.22878171,172.82,172.75,0.65274012]
[1641308291319,12.22878171,172.82,172.75,3.65274012]
[1641308292018,12.22878171,172.81,172.75,3.65274012]
[1641308292218,12.22878171,172.81,172.76,0.65274012]
[1641308292717,12.22878171,172.81,172.75,0.65274012]
[1641308293118,16.60378171,172.81,172.75,0.65274012]
[1641308293319,16.60378171,172.81,172.8,4.0786185]
[1641308293320,4.375,172.81,172.8,4.0786185]
[1641308293620,4.375,172.81,172.8,4.73135862]
[1641308294021,4.375,172.81,172.8,0.65274012]
[1641308295423,4.375,172.81,172.8,4.012e-05]
[1641308296022,16.60378171,172.81,172.8,4.012e-05]
[1641308296822,16.60378171,172.81,172.77,4.012e-05]
[1641308297224,4.375,172.81,172.77,4.07865862]
[1641308297623,4.375,172.81,172.78,4.012e-05]
[1641308298026,16.60378171,172.81,172.78,4.012e-05]
[1641308299129,13.60378171,172.81,172.78,4.012e-05]
[1641308301026,1.375,172.81,172.8,4.0786185]
[1641308301224,12.22878171,172.84,172.8,4.0786185]
[1641308301624,12.22878171,172.84,172.81,4.012e-05]
[1641308302427,64.1616,172.85,172.81,4.012e-05]
[1641308302627,8.5,172.86,172.81,4.012e-05]
[1641308303228,12.23584811,172.84,172.81,4.012e-05]
[1641308303929,4.451,172.84,172.81,4.012e-05]
[1641308304729,16.68679135,172.84,172.81,4.012e-05]
[1641308305329,4.451,172.84,172.81,4.012e-05]
[1641308305529,12.23540181,172.85,172.81,4.07865862]
[1641308306029,8.5,172.86,172.82,4.07865862]
[1641308306030,20.73490883,172.86,172.82,4.07865862]
[1641308306628,20.73490883,172.86,172.83,4.012e-05]
[1641308307529,12.23490883,172.85,172.83,4.012e-05]
[1641308307730,18.09190883,172.85,172.83,4.012e-05]
[1641308307930,18.09190883,172.85,172.82,4.012e-05]
[1641308308230,5.857,172.85,172.82,4.012e-05]
[1641308308630,18.09228779,172.85,172.82,4.012e-05]
[1641308309032,3.0,172.84,172.77,12.22878171]
[1641308309230,27.66479,172.83,172.77,9.14878171]
[1641308309435,27.66479,172.83,172.7,30.66479]
[1641308309643,27.66479,172.83,172.7,27.66479]
[1641308309840,38.46713467,172.85,172.72,3.0]
[1641308310040,38.46713467,172.85,172.78,3.0]
[1641308310240,8.14374649,172.82,172.81,3.0]
[1641308310441,8.14374649,172.82,172.78,3.0]
[1641308310641,8.14374649,172.82,172.81,0.65263315]
[1641308310845,32.61013467,172.89,172.81,0.65263315]
[1641308311041,32.61013467,172.89,172.79,3.65263315]
[1641308311243,32.61013467,172.89,172.8,27.66479]
[1641308311743,3.26265097,172.88,172.81,0.65263315]
[1641308311944,9.93465097,172.88,172.81,0.65263315]
[1641308312344,32.61013467,172.87,172.81,0.65263315]
[1641308312642,35.87278564,172.87,172.78,0.65263315]
[1641308313042,3.26265097,172.86,172.78,0.65263315]
[1641308313243,3.26265097,172.86,172.79,3.0]
[1641308313643,32.61013467,172.87,172.79,3.0]
[1641308313942,32.61013467,172.87,172.8,0.65263315]
[1641308314245,40.75388116,172.89,172.8,0.65263315]
[1641308314842,3.26264696,172.88,172.8,0.65263315]
[1641308315244,3.26264696,172.88,172.8,28.31742315]
[1641308315642,9.62764696,172.88,172.8,28.31742315]
[1641308315844,9.62764696,172.88,172.81,0.65263315]
[1641308316244,6.365,172.88,172.81,0.65263315]
[1641308316645,2.09840701,172.87,172.81,0.65263315]
[1641308317248,42.85228817,172.89,172.81,0.65263315]
[1641308318052,3.2627322,172.88,172.81,0.65263315]
[1641308318452,8.3047322,172.88,172.81,0.65263315]
[1641308318650,2.09840701,172.87,172.81,0.65263315]
[1641308318850,5.36113921,172.87,172.81,0.65263315]
[1641308319252,29.76319701,172.87,172.81,0.65263315]
[1641308319453,2.09840701,172.86,172.81,0.65263315]
[1641308319851,10.2421535,172.86,172.81,0.65263315]
[1641308320852,13.2421535,172.86,172.78,0.65263315]
[1641308321051,10.2421535,172.86,172.78,0.65263315]
[1641308321251,27.66479,172.83,172.78,0.65263315]
[1641308321451,32.44479,172.83,172.78,0.65263315]
[1641308322052,32.44479,172.83,172.76,0.65263315]
[1641308322455,10.2421535,172.82,172.76,0.65263315]
[1641308323053,10.2421535,172.82,172.75,0.65263315]
[1641308323653,10.2421535,172.82,172.75,3.65263315]
[1641308323855,10.2421535,172.82,172.76,1.97983667]
[1641308324054,10.2421535,172.82,172.76,2.63246982]
[1641308324256,10.2421535,172.82,172.77,3.0]
[1641308324455,2.09840701,172.82,172.77,3.0]
[1641308324656,2.09840701,172.82,172.79,3.0]
[1641308325055,2.09840701,172.82,172.81,3.0]
[1641308325255,2.09840701,172.85,172.8,0.65263315]
[1641308325456,2.09840701,172.85,172.81,0.65263315]
[1641308325856,2.09840701,172.85,172.8,0.65263315]
[1641308326257,2.09840701,172.85,172.8,3.65263315]
[1641308326456,2.09840701,172.85,172.8,0.65263315]
[1641308326657,2.09840701,172.85,172.81,0.65263315]
[1641308326858,2.09840701,172.85,172.81,2.63267365]
[1641308327258,2.09840701,172.85,172.81,1.9800405]
[1641308327457,2.09840701,172.85,172.8,0.65263315]
[1641308327657,8.80440701,172.85,172.82,0.65263315]
[1641308328157,8.80440701,172.85,172.8,0.65263315]
[1641308328358,5.09840701,172.84,172.8,0.65263315]
[1641308328556,5.36183975,172.84,172.74,27.66479]
[1641308328756,65.1846,172.83,172.74,27.66479]
[1641308329160,27.66479,172.82,172.75,1.97978471]
[1641308329359,27.66479,172.82,172.67,35.61013467]
[1641308329557,3.0,172.79,172.68,60.0795]
[1641308329756,7.83,172.79,172.68,60.0795]
[1641308329959,7.83,172.79,172.68,0.65289631]
[1641308330459,6.26448153,172.78,172.68,0.65289631]
[1641308330658,3.0,172.77,172.68,0.65289631]
[1641308330857,3.26448153,172.77,172.68,0.65289631]
[1641308331057,3.26448153,172.77,172.69,3.0]
[1641308331260,59.7456,172.78,172.7,3.0]
[1641308331462,59.7456,172.78,172.69,3.0]
[1641308331661,59.7456,172.78,172.71,0.65289631]
[1641308332060,59.7456,172.78,172.69,0.65289631]
[1641308332061,8.31607912,172.77,172.69,0.65289631]
[1641308332560,8.31607912,172.77,172.68,0.65289631]
[1641308333760,8.31607912,172.77,172.69,3.0]
[1641308334161,8.31607912,172.77,172.7,0.65289631]
[1641308334559,8.31607912,172.77,172.69,0.65289631]
[1641308334960,4.747,172.78,172.69,0.65289631]
[1641308335163,4.747,172.78,172.7,30.66479]
[1641308335359,4.747,172.78,172.71,3.0]
[1641308335560,4.747,172.78,172.71,3.65289631]
[1641308335761,16.89607912,172.8,172.71,3.65289631]
[1641308335961,16.89607912,172.8,172.72,0.65289631]
[1641308336261,16.89607912,172.8,172.71,3.65289631]
[1641308336462,8.58,172.8,172.71,0.65289631]
[1641308337162,8.58,172.8,172.73,27.66479]
[1641308337363,46.59421379,172.81,172.73,27.66479]
[1641308337863,46.59421379,172.81,172.74,0.65289631]
[1641308338062,55.43421379,172.81,172.74,0.65289631]
[1641308338462,3.26426513,172.8,172.74,0.65289631]
[1641308338862,35.8743998,172.8,172.74,0.65289631]
[1641308339464,32.61013467,172.8,172.74,0.65289631]
[1641308340268,12.24078062,172.77,172.74,0.65289631]
[1641308341166,12.24078062,172.76,172.74,0.65289631]
[1641308342065,96.17943467,172.8,172.74,0.65289631]
[1641308342265,12.24036945,172.77,172.74,0.65289631]
[1641308342965,12.24031827,172.78,172.74,0.65289631]
[1641308348368,63.5693,172.8,172.74,0.65289631]
[1641308349969,63.5693,172.8,172.74,5.57589631]
[1641308350168,12.24031827,172.81,172.74,5.57589631]
[1641308350370,96.87563467,172.85,172.74,8.57589631]
[1641308350371,12.24031827,172.82,172.74,8.57589631]
[1641308350772,12.24031827,172.82,172.75,0.65289631]
[1641308351069,12.24031827,172.83,172.75,0.65289631]
[1641308351271,12.24031827,172.83,172.78,27.66479]
[1641308352272,32.61013467,172.87,172.82,3.0]
[1641308352475,32.61013467,172.87,172.82,9.655]
[1641308352671,32.61013467,172.87,172.82,6.655]
[1641308352872,40.6407409,172.95,172.83,3.65289631]
[1641308353171,3.26216931,172.94,172.84,0.65289631]
[1641308353373,3.26216931,172.94,172.86,27.66479]
[1641308354173,3.26216931,172.94,172.84,27.66479]
[1641308354174,3.0,172.91,172.84,27.66479]
[1641308354371,3.0,172.92,172.69,137.33246567]
[1641308354573,61.0717,172.91,172.76,3.0]
[1641308354772,61.0717,172.91,172.76,35.61013467]
[1641308354971,61.0717,172.91,172.77,3.0]
[1641308355172,61.0717,172.91,172.82,3.0]
[1641308355371,32.61013467,172.92,172.82,32.71779]
[1641308355571,32.61013467,172.88,172.83,0.65252412]
[1641308356571,32.61013467,172.91,172.83,0.65252412]
[1641308357171,32.61013467,172.88,172.83,0.65252412]
[1641308357574,3.26287257,172.87,172.83,0.65252412]
[1641308358474,32.61013467,172.88,172.83,0.65252412]
[1641308359675,32.61013467,172.9,172.83,0.65252412]
[1641308360176,32.61013467,172.89,172.83,0.65252412]
[1641308360376,35.87280255,172.89,172.83,0.65252412]
[1641308360878,3.26266788,172.88,172.83,0.65252412]
[1641308361281,32.61013467,172.89,172.83,3.65252412]
[1641308361677,32.61013467,172.91,172.84,0.65252412]
[1641308362277,8.03060623,172.93,172.84,0.65252412]
[1641308362676,3.26212224,172.92,172.84,0.65252412]
[1641308363377,3.26212224,172.92,172.85,27.66479]
[1641308363978,3.26212224,172.92,172.86,0.65252412]
[1641308365280,3.26212224,172.93,172.86,0.65252412]
[1641308366180,3.26212224,172.93,172.87,3.0]
[1641308366384,3.26212224,172.93,172.86,8.45252412]
[1641308366580,3.26212224,172.93,172.86,5.45252412]
[1641308366781,3.26212224,172.93,172.87,0.65252412]
[1641308367683,3.26212224,172.93,172.86,0.65252412]
[1641308370186,3.26212224,172.93,172.86,3.65252412]
[1641308370586,3.26212224,172.93,172.87,0.65252412]
[1641308371190,3.26212224,172.93,172.86,0.65252412]
[1641308371390,3.26212224,172.93,172.87,3.0]
[1641308371591,3.26212224,172.93,172.86,0.65252412]
[1641308373088,7.29226673,172.93,172.86,0.65252412]
[1641308373691,3.26212224,172.92,172.86,0.65252412]
[1641308374092,3.26212224,172.92,172.86,3.65252412]
[1641308374494,3.26212224,172.92,172.86,0.65252412]
[1641308374694,3.26212224,172.92,172.87,0.65252412]
[1641308375094,3.26212224,172.92,172.86,0.65252412]
[1641308375893,31.69493449,172.94,172.86,0.65252412]
[1641308375894,3.26212224,172.93,172.86,0.65252412]
[1641308376094,3.26212224,172.93,172.86,3.65252412]
[1641308376496,3.26212224,172.93,172.86,0.65252412]
[1641308377195,3.26212224,172.93,172.86,3.65252412]
[1641308377395,3.26212224,172.93,172.86,0.65252412]
[1641308377695,3.26212224,172.93,172.87,0.65252412]
[1641308378496,2.00489973,172.92,172.87,4.03014449]
[1641308379098,2.00489973,172.92,172.88,0.65252412]
[1641308380500,42.67969901,172.95,172.88,0.65252412]
[1641308380898,3.26185585,172.94,172.88,0.65252412]
[1641308382803,12.23248396,172.9,172.88,0.65252412]
[1641308383205,12.23248396,172.9,172.87,0.65252412]
[1641308383405,6.429,172.9,172.87,0.65252412]
[1641308384305,3.26249954,172.89,172.87,0.65252412]
[1641308384506,12.23383813,172.88,172.87,0.65252412]
[1641308385608,2.00489973,172.89,172.87,0.65252412]
[1641308385806,10.06956434,172.91,172.87,0.65252412]
[1641308386308,42.67969901,172.91,172.87,0.65252412]
[1641308386508,3.26266243,172.9,172.87,0.65252412]
[1641308387109,2.00489973,172.89,172.87,0.65252412]
[1641308387311,14.23909698,172.89,172.87,0.65252412]
[1641308388110,3.26282158,172.88,172.87,0.65252412]
[1641308388311,15.49701883,172.88,172.87,0.65252412]
[1641308389211,3.26282158,172.88,172.87,0.65252412]
[1641308389910,6.26282158,172.9,172.87,0.65252412]
[1641308390111,6.26282158,172.9,172.86,6.0]
[1641308390311,3.0,172.88,172.83,4.03014449]
[1641308390714,15.19141017,172.88,172.79,27.66479]
[1641308391515,15.19141017,172.88,172.8,0.65267781]
[1641308391718,8.66,172.96,172.87,3.0]
[1641308391917,81.57605531,172.99,172.95,3.0]
[1641308392118,81.57605531,172.99,172.96,3.0]
[1641308392316,81.57605531,172.99,172.97,3.0]
[1641308392518,81.57605531,172.99,172.98,3.0]
[1641308392919,81.57605531,172.99,172.98,0.65187175]
[1641308393117,3.0,173.11,172.98,0.65187175]
[1641308393317,3.0,173.12,172.98,0.65187175]
[1641308393718,30.66479,173.13,173.04,27.66479]
[1641308394021,3.25963086,173.11,173.04,27.66479]
[1641308394418,3.25963086,173.12,173.05,0.65187175]
[1641308394620,3.25963086,173.12,173.05,4.7115882]
[1641308395319,3.25963086,173.12,173.06,0.65187175]
[1641308396321,3.0,173.07,173.06,0.65187175]
[1641308396522,3.0,173.08,173.06,0.65187175]
[1641308396721,3.25963086,173.12,173.05,0.65187175]
[1641308397223,22.81830017,173.12,173.05,0.65187175]
[1641308397621,3.0,173.11,173.05,0.65187175]
[1641308397822,3.0,173.07,173.05,0.65187175]
[1641308398421,3.0,173.07,173.05,4.7115882]
[1641308398622,3.25963086,173.06,173.05,4.7115882]
[1641308398822,6.25963086,173.06,173.05,4.7115882]
[1641308399023,3.0,173.06,172.97,38.61013467]
[1641308399322,3.0,173.04,172.97,38.61013467]
[1641308399522,3.0,173.07,172.97,38.61013467]
[1641308399724,30.66479,173.07,172.98,43.11041343]
[1641308399923,3.0,173.0,172.98,48.0557581]
[1641308400125,6.259,173.0,172.98,48.0557581]
[1641308400423,6.259,173.0,172.99,0.65212955]
[1641308401222,9.259,173.0,172.99,0.65212955]
[1641308401423,9.259,173.0,172.98,0.65212955]
[1641308401623,3.0,172.99,172.98,0.65212955]
[1641308402024,3.0,173.1,172.98,0.65212955]
[1641308402222,3.0,173.1,172.98,4.90312955]
[1641308402824,3.0,173.09,172.99,0.65212955]
[1641308403123,3.0,173.08,172.99,0.65212955]
[1641308403324,3.0,173.09,172.99,0.65212955]
[1641308403624,3.0,173.1,172.99,0.65212955]
[1641308403823,3.0,173.11,173.04,27.66479]
[1641308404023,3.0,173.1,173.04,27.66479]
[1641308404324,3.0,173.07,173.05,0.65212955]
[1641308404525,3.0,173.08,173.05,0.65212955]
[1641308404723,3.0,173.09,173.05,0.65212955]
[1641308405124,3.0,173.1,173.05,0.65212955]
[1641308405327,3.0,173.09,173.05,0.65212955]
[1641308405527,3.0,173.1,173.05,0.65212955]
[1641308405726,3.0,173.11,173.05,0.65212955]
[1641308405924,11.56,173.12,173.05,0.65212955]
[1641308406526,8.56,173.12,173.05,0.65212955]
[1641308406725,11.56,173.12,173.05,0.65212955]
[1641308407125,8.56,173.12,173.05,0.65212955]
[1641308407326,11.56,173.12,173.05,0.65212955]
[1641308407526,8.56,173.12,173.05,0.65212955]
[1641308407926,11.56,173.12,173.05,0.65212955]
[1641308408127,8.56,173.12,173.05,0.65212955]
[1641308408328,2.04069861,173.12,173.05,5.14912955]
[1641308408727,125.0795,173.14,173.05,5.14912955]
[1641308408927,63.0979,173.14,173.06,0.65212955]
[1641308409327,3.0,173.13,173.06,0.65212955]
[1641308409730,63.0979,173.14,173.06,0.65212955]
[1641308409930,63.0979,173.14,173.08,27.66479]
[1641308410132,3.0,173.15,173.08,27.66479]
[1641308410330,3.0,173.15,173.09,0.65212955]
[1641308410529,66.0067,173.16,173.09,0.65212955]
[1641308410729,3.0,173.15,173.09,0.65212955]
[1641308410930,3.0,173.13,173.09,0.65212955]
[1641308411330,3.0,173.14,173.06,0.65212955]
[1641308411529,66.0067,173.16,173.06,0.65212955]
[1641308411931,3.0,173.14,173.08,27.66479]
[1641308412129,8.56092951,173.15,173.08,27.66479]
[1641308412429,5.56092951,173.15,173.08,32.79779]
[1641308412632,63.0067,173.16,173.09,0.65212955]
[1641308413531,3.0,173.16,173.09,0.65212955]
[1641308413931,3.0,173.16,173.13,27.66479]
[1641308415632,3.25932662,173.15,173.13,27.66479]
[1641308416935,25.81410164,173.19,173.13,27.66479]
[1641308417335,3.25932662,173.18,173.13,27.66479]
[1641308417535,3.0,173.14,173.08,27.66479]
[1641308417738,3.0,173.13,173.09,0.65190053]
[1641308417938,3.25932662,173.13,173.09,0.65190053]
[1641308418339,8.60832662,173.13,173.09,0.65190053]
[1641308418736,3.25932662,173.12,173.09,0.65190053]
[1641308419740,3.25932662,173.13,173.09,0.65190053]
[1641308420138,6.25932662,173.13,173.09,11.02272518]
[1641308420342,3.25932662,173.13,173.09,11.02272518]
[1641308420539,27.66479,173.18,173.09,10.37082465]
[1641308420540,3.25932662,173.12,173.09,10.37082465]
[1641308420939,3.25932662,173.16,173.1,0.6519306]
[1641308421741,3.25932662,173.16,173.1,5.6779306]
[1641308421941,3.25932662,173.16,173.13,27.66479]
[1641308422144,3.25932662,173.19,173.13,27.66479]
[1641308422743,3.25932662,173.19,173.14,0.6519306]
[1641308422944,3.25932662,173.19,173.14,6.8519306]
[1641308423144,12.22132018,173.26,173.18,3.0]
[1641308423345,12.22132018,173.26,173.19,3.0]
[1641308423544,12.22132018,173.26,173.25,3.0]
[1641308423743,12.22132018,173.26,173.25,6.161]
[1641308423945,3.0,173.35,173.25,61.49058]
[1641308424242,73.32302018,173.37,173.25,61.49058]
[1641308424443,3.0,173.35,173.25,61.49058]
[1641308424643,21.70205137,173.36,173.26,0.65128574]
[1641308425244,21.70205137,173.36,173.3,12.19968799]
[1641308425944,21.70205137,173.36,173.31,12.19968799]
[1641308426544,21.70205137,173.36,173.32,3.0]
[1641308426744,21.70205137,173.36,173.32,15.19968799]
[1641308427044,21.70205137,173.38,173.32,12.19968799]
[1641308427244,21.70205137,173.38,173.32,15.19968799]
[1641308427445,8.62,173.41,173.36,3.0]
[1641308427645,12.22132018,173.44,173.36,4.306]
[1641308427845,20.76132018,173.44,173.36,4.306]
[1641308428047,20.76132018,173.44,173.39,27.66479]
[1641308428446,8.54,173.44,173.4,12.19968799]
[1641308428646,11.54,173.44,173.4,12.19968799]
[1641308428848,0.65092726,173.43,173.4,12.19968799]
[1641308429248,0.65092726,173.43,173.4,22.57051264]
[1641308429848,0.65092726,173.43,173.4,12.19968799]
[1641308430048,0.65092726,173.43,173.39,39.86447799]
[1641308430651,0.65092726,173.43,173.4,3.25481971]
[1641308431550,0.65092726,173.44,173.4,3.25481971]
[1641308432351,0.65092726,173.44,173.41,2.86913797]
[1641308433153,0.65092726,173.47,173.42,3.25433573]
[1641308433551,0.65092726,173.47,173.42,6.25433573]
[1641308433751,0.65092726,173.47,173.43,2.86913797]
[1641308433958,0.65092726,173.49,173.44,27.66479]
[1641308434453,0.65092726,173.49,173.45,3.25433573]
[1641308434855,3.0,173.48,173.45,2.86913797]
[1641308435054,9.04092726,173.49,173.45,2.86913797]
[1641308435253,0.65092726,173.47,173.45,2.86913797]
[1641308435553,0.65092726,173.47,173.41,12.19968799]
[1641308435754,8.68,173.5,173.41,12.19968799]
[1641308435755,0.65092726,173.48,173.41,12.19968799]
[1641308436154,0.65092726,173.49,173.42,3.25415757]
[1641308437657,0.65092726,173.49,173.43,2.86913797]
[1641308438056,0.65092726,173.49,173.43,30.53392797]
[1641308438258,0.65092726,173.49,173.44,3.25415757]
[1641308439256,0.65092726,173.49,173.45,2.86913797]
[1641308441056,0.65092726,173.49,173.44,2.86913797]
[1641308441457,0.65092726,173.49,173.45,3.25380525]
[1641308441956,0.65092726,173.49,173.44,2.86913797]
[1641308442156,4.85292726,173.49,173.46,2.86913797]
[1641308442755,4.85292726,173.49,173.43,2.86913797]
[1641308442957,1.84610867,173.48,173.43,2.86913797]
[1641308443257,0.65092726,173.47,173.44,3.2540949]
[1641308443757,0.65092726,173.47,173.43,2.86913797]
[1641308444157,31.31571726,173.48,173.43,2.86913797]
[1641308444357,28.31571726,173.48,173.43,2.86913797]
[1641308444559,28.31571726,173.48,173.45,2.86913797]
[1641308444757,0.65092726,173.47,173.45,2.86913797]
[1641308445157,0.65092726,173.47,173.43,2.86913797]
[1641308445957,0.65092726,173.47,173.42,6.0]
[1641308447361,3.0,173.46,173.42,6.0]
[1641308447762,0.65092726,173.45,173.42,6.0]
[1641308448262,3.65092726,173.45,173.42,6.0]
[1641308448664,0.65092726,173.44,173.42,6.0]
[1641308449164,0.65092726,173.45,173.42,6.0]
[1641308450166,3.0,173.43,173.42,6.0]
[1641308450366,6.294,173.45,173.36,27.66479]
[1641308450766,3.0,173.42,173.37,3.25477797]
[1641308451169,0.65092726,173.41,173.37,3.25477797]
[1641308452067,3.65092726,173.44,173.37,3.25477797]
[1641308452268,31.31571726,173.44,173.37,3.25477797]
[1641308452569,0.65092726,173.43,173.37,3.25477797]
[1641308452768,2.14888252,173.43,173.38,2.57107209]
[1641308453369,1.49795526,173.42,173.38,2.57107209]
[1641308453568,2.14888252,173.42,173.39,3.25477797]
[1641308453969,0.65092726,173.41,173.39,3.25477797]
[1641308454171,0.65092726,173.41,173.4,2.57107209]
[1641308454970,0.65092726,173.45,173.4,5.82585006]
[1641308455170,0.65092726,173.45,173.4,18.02553805]
[1641308455371,0.65092726,173.45,173.41,3.25477797]
[1641308455771,0.65092726,173.47,173.42,2.57107209]
[1641308456472,1.4971816,173.46,173.42,2.57107209]
[1641308457072,0.65092726,173.45,173.42,2.57107209]
[1641308457674,0.65092726,173.45,173.43,3.25414902]
[1641308458476,0.65092726,173.48,173.43,3.25414902]
[1641308458674,0.65092726,173.48,173.44,2.57107209]
[1641308458877,0.65092726,173.49,173.44,2.57107209]
[1641308459377,3.65092726,173.49,173.44,2.57107209]
[1641308459580,0.65092726,173.49,173.44,2.57107209]
[1641308459778,0.65092726,173.48,173.47,4.06786766]
[1641308459980,3.65092726,173.48,173.47,4.06786766]
[1641308460182,3.65092726,173.49,173.47,4.06786766]
[1641308460379,3.0,173.48,173.47,4.06786766]